Cogmind - Beta 13 @@@ ROGUE MODE // 2024.03.17 @ 04:00:37 Player: Infomantis Result: Destroyed by G-47 Trooper with Particle Gun Performance ------------- Evolutions (2) 1000 Regions Visited (3) 600 Robots Destroyed (40) 200 Value Destroyed (831) 831 Prototype IDs (10) 200 Alien Tech Used (0) 0 Bonus (0) 0 TOTAL SCORE: 2831 Bonus ------- None Cogmind --------- Core Integrity 0/550 Matter 221/300 Energy 100/100 System Corruption 7% Temperature Cool (9) Movement Core (350) Ox6 Location -8/Materials Parts ------- > --- POWER (1) -------- (None) > --- PROPULSION (3) --- (None) > --- UTILITY (4) ------ Large Storage Unit > --- WEAPON (3) ------- (None) > --- INVENTORY (15) --- Seismic Detector Seismic Detector Gun Armor Subdweller Machine Gun Datajack Multitool Peak State ------------ > --- POWER ------------ Light Nuclear Core > --- PROPULSION ------- Aluminum Leg Aluminum Leg Aluminum Leg > --- UTILITY ---------- Large Storage Unit Sensor Array > --- WEAPON ----------- Riot Gun Heavy Battle Rifle > --- INVENTORY -------- Subdweller Power Source Wheel Seismic Detector Seismic Detector Gun Armor Subdweller Machine Gun Grenade Launcher Datajack Mining Laser Multitool Flamer [Rating: 17] Favorites ----------- Power Ion Engine Engine Ion Engine Power Core Light Nuclear Core Propulsion Light Treads Treads Light Treads Leg Aluminum Leg Wheel Wheel Utility Large Storage Unit Device Sensor Array Storage Large Storage Unit Protection Light Armor Plating Weapon Assault Rifle Energy Gun Riot Gun Energy Cannon Subdweller Beam Cannon Ballistic Gun Assault Rifle Launcher Grenade Launcher Special Weapon Mining Laser Build | -11 -10 -10 -8 ------- Run | Yrd Mat Sub Mat Slots Evolved 4 | . . . 4 Power . | . . . . Propulsion 1 | . . . 1 Utility 2 | . . . 2 Weapon 1 | . . . 1 Parts Attached 52 | 8 11 16 17 Power 7 | 2 1 2 2 Engine 5 | 2 . 2 1 Core 2 | . 1 . 1 Reactor . | . . . . Propulsion 9 | 2 1 1 5 Treads 4 | 2 1 . 1 Leg 3 | . . 1 2 Wheel 2 | . . . 2 Hover . | . . . . Flight . | . . . . Utility 6 | 2 2 1 1 Device 3 | 1 1 1 . Storage 2 | 1 1 . . Processor . | . . . . Hackware . | . . . . Protection 1 | . . . 1 Artifact . | . . . . Weapon 30 | 2 7 12 9 Energy Gun 8 | . . 5 3 Energy Cannon 1 | . . 1 . Ballistic Gun 13 | 2 4 5 2 Ballistic Cannon . | . . . . Launcher 5 | . 2 1 2 Special Weapon 3 | . 1 . 2 Impact Weapon . | . . . . Slashing Weapon . | . . . . Piercing Weapon . | . . . . Special Melee Weapon . | . . . . Unidentified Prototypes . | . . . . Parts Lost 25 | . 1 5 19 Power 4 | . . 1 3 Propulsion 7 | . . 1 6 Utility 3 | . 1 . 2 Weapon 11 | . . 3 8 Highest Loss Streak 10 | . 1 5 10 To Critical Strikes . | . . . . Average Slot Usage (%) 89 | . 97 93 56 Engine 11 | . 10 12 7 Core 2 | . 3 1 . Treads 18 | . 27 15 5 Leg 4 | . . 7 9 Device 12 | . 11 14 7 Storage 13 | . 14 14 9 Energy Gun 7 | . . 13 7 Ballistic Gun 18 | . 26 13 7 Naked Turns . | . . . . Heaviest Build 37 | 13 31 37 34 Greatest Support 40 | 40 40 40 30 Greatest Overweight (x) 2 | . . 1 2 Average Overweight (x) . | . . . 1 Largest Inventory Capacity 15 | 8 15 15 15 Average Capacity 14 | 7 14 15 15 Most Carried 15 | 8 15 15 14 Average Carried 12 | 5 13 14 10 Final Capacity 15 | 8 15 15 15 Final Carried 15 | 8 15 14 6 Class Distribution -------------------- 95% | Mutant 4% | Skirmisher Dominant Class ---------------- Mutant | -10/Materials Mutant | -10/Subcaves Mutant | -8/Materials Resources | -11 -10 -10 -8 ----------- Run | Yrd Mat Sub Mat Matter Collected 1083 | 340 322 269 152 Remotely . | . . . . Salvage Created 1132 | 267 383 213 269 Parts 78 | 21 29 14 14 Haulers Intercepted 2 | . 2 . . Recyclers Shooed . | . . . . Parts Field Recycled . | . . . . Retrieved Matter . | . . . . Parts Self-Destructed 4 | . . 4 . Prevented . | . . . . Kills | -11 -10 -10 -8 ------- Run | Yrd Mat Sub Mat Combat Hostiles Destroyed 23 | . 9 5 9 Guns 13 | . 4 3 6 Cannons 1 | . . 1 . AOE 8 | . 5 1 2 Classes Destroyed 12 | 3 5 2 2 Worker 2 | 1 1 . . Builder 1 | . 1 . . Tunneler 8 | 8 . . . Hauler 2 | . 2 . . Recycler 1 | 1 . . . Watcher 3 | . 3 . . Swarmer 9 | . 5 . 4 Grunt 7 | . 4 . 3 Sentry 1 | . . . 1 Hunter 1 | . . . 1 Artisan 1 | . . 1 . Subdweller 5 | . . 5 . Best Kill Streak 6 | 3 6 2 5 Combat Bots Only 5 | . 5 2 5 Max Kills in Single Turn 3 | 1 3 2 2 Gunslinging . | . . . . Exploded 3 | . 3 1 2 Melee . | . . . . Uniques/NPCs Destroyed . | . . . . Combat | -11 -10 -10 -8 -------- Run | Yrd Mat Sub Mat Hostile Shots Fired 219 | . 52 24 143 Missed 64 | . 20 6 38 Damage Taken 2602 | . 389 559 1654 Core 707 | . 80 69 558 Absorbed by Shields . | . . . . Regen/Repaired (Parts) 136 | . 136 . . Core Remaining (%) 70 | 100 . 40 . Volleys Fired 179 | 30 75 27 47 Largest 3 | 2 2 2 3 Hottest 140 | 40 100 110 140 Shots Fired 324 | 60 135 41 88 Gun 293 | 60 120 31 82 Cannon 6 | . . 6 . Launcher 13 | . 5 4 4 Special 12 | . 10 . 2 Kinetic 236 | 60 120 17 39 Thermal 53 | . 10 17 26 Explosive 13 | . 5 4 4 Electromagnetic 22 | . . 3 19 Robot Hit Streak 13 | 11 13 13 11 Robot Miss Streak 7 | 5 7 1 4 Penetration Max . | . . . . Secondary Targets 2 | . 1 . 1 Max Gunslinging Chain 1 | . 1 . 1 Shots Hit Robots 182 | 41 65 20 56 Core Hits 71 | 19 28 10 14 Critical Kills 1 | 1 . . . Critical Parts Destroyed 1 | . 1 . . Critical Strikes 2 | 1 1 . . Destroy 2 | 1 1 . . Melee Attacks . | . . . . Impact . | . . . . Slashing . | . . . . Piercing . | . . . . Sneak Attacks . | . . . . Combat Hostiles . | . . . . Follow-up Attacks . | . . . . Damage Inflicted 2997 | 335 1012 515 1135 Guns 2220 | 335 688 232 965 Cannons 86 | . . 86 . Explosions 660 | . 316 197 147 Melee . | . . . . Ramming 31 | . 8 . 23 Kinetic 1589 | 335 688 128 438 Thermal 419 | . . 149 270 Explosive 660 | . 316 197 147 Electromagnetic 298 | . . 41 257 Impact . | . . . . Slashing . | . . . . Piercing . | . . . . Highest Corruption 7 | . . . 7 Average Corruption 3 | . . . 3 Corruption Purged . | . . . . Corruption Blocked . | . . . . Overload Shots . | . . . . Overflow Damage 37 | . 6 . 31 Projectiles . | . . . . Explosions 37 | . 6 . 31 Melee . | . . . . Knockbacks . | . . . . Impact . | . . . . Kinetic . | . . . . Secondary . | . . . . Self-Inflicted Damage 206 | . 51 39 116 Shots 6 | . 3 1 2 Rammed 1 | . 1 . . Targets Rammed 1 | . 1 . . Kicked . | . . . . Crushed . | . . . . Highest Temperature 285 | . 96 285 252 Average Temperature 66 | . 33 124 75 Received Heat Transfer 1103 | . 90 437 576 Siege Activations . | . . . . Robots Corrupted 1 | . . . 1 Combat Hostiles 1 | . . . 1 Parts Fried 1 | . . . 1 Impact Corruptions . | . . . . Robots Melted . | . . . . Combat Hostiles . | . . . . Parts Melted . | . . . . Heat Transferred 611 | . . 211 400 Parts Sabotaged . | . . . . Parts Stolen . | . . . . Parts Stripped . | . . . . Power Chain Reactions . | . . . . Alert | -11 -10 -10 -8 ------- Run | Yrd Mat Sub Mat Peak Influence 286 | 50 286 . 252 Initial 32 | . 32 . . Average 102 | 23 100 . 169 Maximum Alert Level 1 | . 1 . 1 Low Security (%) 90 | 100 98 . 59 Level 1 9 | . 1 . 40 Level 2 . | . . . . Level 3 . | . . . . Level 4 . | . . . . Level 5 . | . . . . High Security . | . . . . Max Security . | . . . . Squads Dispatched 2 | . . . 2 Investigation 1 | . . . 1 Extermination . | . . . . Reinforcement 1 | . . . 1 Assault . | . . . . Garrison . | . . . . Intercept . | . . . . Searches Triggered . | . . . . Construction Impeded . | . . . . Haulers Reinforced . | . . . . Active Scanning Responses . | . . . . Cargo Convoy Interrupts . | . . . . Stealth | -11 -10 -10 -8 --------- Run | Yrd Mat Sub Mat Distress Signals 1 | . 1 . . Communications Jammed . | . . . . Distress Signals . | . . . . Times Spotted 40 | . 20 5 15 Peak Tracking Total 6 | . 5 2 6 Tactical Retreats 1 | . . . 1 Traps | -11 -10 -10 -8 ------- Run | Yrd Mat Sub Mat Traps Triggered 2 | . 1 . 1 Indirectly . | . . . . Trap Hack Attempts . | . . . . Triggered . | . . . . Disarmed . | . . . . Reprogrammed . | . . . . Reused . | . . . . Traps Extracted . | . . . . Installed . | . . . . Triggered . | . . . . Machines | -11 -10 -10 -8 ---------- Run | Yrd Mat Sub Mat Machines Disabled 4 | . 2 1 1 Max in Single Turn 1 | . 1 1 1 Machines Repaired . | . . . . Machines Dismantled . | . . . . Machines Sabotaged . | . . . . Overloaded Fab Kills . | . . . . Hacking | -11 -10 -10 -8 --------- Run | Yrd Mat Sub Mat Machines Accessed 4 | . 3 1 . Terminals 2 | . 2 . . Fabricators . | . . . . Repair Stations 1 | . 1 . . Recycling Units . | . . . . Scanalyzers . | . . . . Garrison Access . | . . . . Total Hacks 13 | . 12 1 . Successful 8 | . 7 1 . Failed 5 | . 5 . . Catastrophic . | . . . . Database Lockouts . | . . . . Manual 7 | . 7 . . Terminals 7 | . 7 . . Fabricators . | . . . . Repair Stations 5 | . 5 . . Recycling Units . | . . . . Scanalyzers . | . . . . Garrison Access . | . . . . Terminal Hacks 2 | . 1 1 . Maintenance Status 1 | . 1 . . Derelict Proto ID Bank 1 | . . 1 . Fabricator Hacks . | . . . . Repair Station Hacks 4 | . 4 . . Scan Component 2 | . 2 . . Repair 2 | . 2 . . Recycling Unit Hacks . | . . . . Scanalyzer . | . . . . Garrison Access Hacks . | . . . . Unauthorized Hacks 2 | . 2 . . Terminals 2 | . 2 . . Botnet 1 | . 1 . . Operators 1 | . 1 . . Fabricators . | . . . . Repair Stations . | . . . . Recycling Units . | . . . . Scanalyzers . | . . . . Garrison Access . | . . . . Data Cores Recovered . | . . . . Used . | . . . . Hacking Detections 3 | . 3 . . Full Trace Events 1 | . 1 . . Feedback Events . | . . . . Feedback Blocked . | . . . . Robot Schematics Acquired . | . . . . Robots Built . | . . . . Authchips . | . . . . Time . | . . . . Total Robot Build Rating . | . . . . Part Schematics Acquired . | . . . . Parts Built . | . . . . Authchips . | . . . . Time . | . . . . Total Part Build Rating . | . . . . Parts Repaired 2 | . 2 . . Time 52 | . 52 . . Parts Recycled . | . . . . Recycled Matter . | . . . . Retrieved Matter . | . . . . Retrieved Components . | . . . . Parts Scanalyzed . | . . . . Part Schematics Acquired . | . . . . Parts Damaged . | . . . . Bothacking | -11 -10 -10 -8 ------------ Run | Yrd Mat Sub Mat Used RIF Installer . | . . . . Robots Hacked . | . . . . Non-combat . | . . . . Combat . | . . . . Robot Hacks Applied . | . . . . Relay Couplers Released . | . . . . Fabnet Peak Effective % . | . . . . Robots Rewired . | . . . . Allies Hacked . | . . . . Hacks Repelled . | . . . . Allies | -11 -10 -10 -8 -------- Run | Yrd Mat Sub Mat Total Allies . | . . . . Largest Group . | . . . . Highest-Rated Group . | . . . . Highest-Rated Ally . | . . . . Total Orders . | . . . . Ally Attacks . | . . . . Total Damage . | . . . . Kills . | . . . . Allies Corrupted . | . . . . Allies Melted . | . . . . Intel | -11 -10 -10 -8 ------- Run | Yrd Mat Sub Mat Robot Analysis Total . | . . . . Derelict Logs Recovered 1 | . . 1 . Drone Launches . | . . . . Drone Recoveries . | . . . . Exploration | -11 -10 -10 -8 ------------- Run | Yrd Mat Sub Mat Turns Passed 3160 | 301 1176 1286 397 Spaces Moved 1235 | 130 534 491 80 Core 4 | 4 . . . Treads 1204 | 126 534 491 53 Legs 18 | . . . 18 Wheels 9 | . . . 9 Hover . | . . . . Flight . | . . . . Fastest Speed 50 | 50 160 160 110 Average Speed 191 | 156 160 231 222 Slowest Speed 260 | 160 160 240 260 Overloaded Moves . | . . . . Propulsion Burnouts . | . . . . Robots Hopped . | . . . . Cave-ins Triggered . | . . . . Exploration Rate (%) 27 | 7 70 24 10 Regions Visited 3 Branch Regions 1 Pre-discovered Areas . | . . . . Known Exits Taken . | . . . . Unknown Exits Taken 3 | 1 1 1 . Scrap Searched 5 | . . 5 . Spaces Dug 11 | . 11 . . Terrain Destroyed 103 | . 36 18 49 Melee . | . . . . Projectile 6 | . 4 2 . AOE 97 | . 32 16 49 Terrain Rammed 11 | . . . 11 Walls Destroyed . | . . . . Machines Disabled . | . . . . Actions | -11 -10 -10 -8 --------- Run | Yrd Mat Sub Mat Total 1671 | 176 710 602 183 Wait 159 | . 80 52 27 Move 1232 | 129 533 490 80 Hop . | . . . . Pick Up 24 | 9 7 8 . Fast Attach 16 | 6 3 2 5 Attach 15 | 1 . 5 9 Detach 3 | . . 2 1 Swap 21 | 1 8 9 3 Drop 10 | . 3 7 . Fire 179 | 30 75 27 47 Melee . | . . . . Ram 11 | . . . 11 Kick . | . . . . Crush 1 | . 1 . . Escape Stasis . | . . . . Rewire . | . . . . Trap . | . . . . Miscellaneous . | . . . . Route ------- -11/Scrapyard -10/Materials (discovered 4 exits: [*Mat x2] / [*Min] / *Sub) -10/Subcaves -8/Materials History --------- Turn | Location | Event 3 | -11/Scrapyard | Discovered new exit (range 15) 302 | -11/Scrapyard | Entered Materials 303 | -10/Materials | Build established: Mutant 592 | -10/Materials | Discovered new exit (range 14) 1070 | -10/Materials | Discovered new exit (range 7) 1263 | -10/Materials | Discovered new exit (range 10) 1297 | -10/Materials | Repaired Lgt. Treads 1324 | -10/Materials | Repaired Sensor Array 1381 | -10/Materials | Discovered new exit (range 2) 1478 | -10/Materials | Entered Subcaves 1577 | -10/Subcaves | Discovered new exit (range 9) 1581 | -10/Subcaves | Ambushed by Subdweller buried in earth 1601 | -10/Subcaves | Core integrity fell below 50% 1631 | -10/Subcaves | Lost 5 parts (1p1n3w) 1945 | -10/Subcaves | Visited 4L-MR0's lab 1984 | -10/Subcaves | Found Gun Armor 2764 | -10/Subcaves | Entered Materials 2764 | -8/Materials | Evolved 4 slots: Propulsion x1, Utility x2, Weapon x1 3008 | -8/Materials | Lost 10 parts (2p3n1u4w) 3110 | -8/Materials | Core integrity fell below 50% 3138 | -8/Materials | Core integrity fell below 20% 3161 | -8/Materials | Destroyed by G-47 Trooper with Particle Gun Last Messages --------------- 03118_ Wheel broken. 03118_ Destabilizing: Short circuit. 03119_ Critical hit (Burn: +37). 03122_ Slammed into Nuclear Reactor. 03122_ Destabilizing: Core damaged (-5). 03122_ Destabilizing: Core damaged (-27). 03127_ Slammed into Nuclear Reactor. 03127_ Sub. Power Source broken. 03127_ Destabilizing: Short circuit. 03131_ Broken Sml. Laser destroyed. 03131_ Slammed into Nuclear Reactor. 03136_ Destabilizing: System corrupted (+2). 03139_ Broken Wheel destroyed. 03140_ Slammed into Nuclear Reactor. 03140_ Destabilizing: System corrupted (+1). 03145_ Slammed into Nuclear Reactor. 03155_ Broken Sub. Power Source destroyed. 03158_ Slammed into Nuclear Reactor. 03158_ Destabilizing: System corrupted (+2). 03158_ Destabilizing: Core damaged (-16). Map ----- +----------------------------------------------------+ | | | | | | | | | | | | | | | | | | | | | | | | | | | | | | | | | | | | | | | | | | | | | | | | | ????????????????????????###########??????????????? | | ????????????????????????#@""" """ #??????????????? | | ????????????????????????#g""" """ #??????????????? | | ????????????????????????#g""" """ #??????????????? | | ????????????????????????#Yg #??????????????? | | ????????????????????????# #??????????????? | | ????????????????????????# #??????????????? | | ????????????????????????# #?#####????????? | | ????????????????????????# #?#"""#????????? | | ????????????????????????#####+#######"T"########## | | ??????????????????????????# ## # # | | ??????????????????????????# ! # | | ???????????????????? " + """ """ # | | ?????????????????? # """ """ # # | | ????????????????? # """ """ + # | | ????????????????? ! ]?#!!! # # | | ?????????????????#### ##??#!!! # % | | ????????????????????#?????#!! # ###### | | ????????????????????????# | | ????????????????????????# | | ????????????????????????# | | ????????????????????????# #"T"####### # | | ????????????????????????# #"""#?????# ######## | | ????????????????????????# ####??????# #??????? | | ????????????????????????# ??????????# #??????? | | ??????????????????????????????????????# #??????? | +----------------------------------------------------+ Best States ------------- Heat Dissipation 31 Energy Generation 15 Energy Capacity 250 Matter Stores 300 Matter Capacity 300 Sight Range 16 Robot Scan Range 14 Terrain Scan Density 10 Evasion (%) 45 Recoil Reduction 2 Item Schematics ----------------- None Robot Schematics ------------------ None Fabricated ------------ Nothing Alien Tech Used ----------------- None Achievements -------------- None Challenges ------------ None Game ------ Seed CloakNetworkShield Manual? 0 Play Time 00:18:37 Cumulative 383.0 hours Start 2024.03.17 @ 03:45:12 End 2024.03.17 @ 04:00:37 Sessions 1 Manual Loads 0 Difficulty Rogue Special Mode None Game No. 254 Rogue 231 Adventurer 6 Explorer 17 Win Type - Total 29 Types 21/0/4/1/0/1/1/1/0 Lore% 92 Gallery% 95 Achievement% 79 Wizard Run 0 Options --------- Layout 1 ASCII 0 Keyboard 0 Movement Numpad Keybinds 0 Fullscreen 1 Font 16/TamsynBold Map View 55x38 Zoom Use 0% Tactical HUD 1 Map Filters NONE Filters NONE Steam 1 RUN: d1532487-7e06-4f8a-8b13-5f3ac9ad0059